bitfinex/quotes_BTCUSD_20240918
["timestamp","ask_amount","ask_price","bid_price","bid_amount"]
[1726633718326,0.5809353,60758.0,60757.0,0.10866143]
[1726633718540,0.5809353,60758.0,60757.0,0.00987159]
[1726633719181,0.5809353,60758.0,60757.0,0.10866143]
[1726633719834,0.5809353,60758.0,60757.0,0.00987159]
[1726633720278,0.5809353,60758.0,60757.0,0.10866143]
[1726633720502,0.5809353,60758.0,60757.0,0.00987159]
[1726633721209,0.5809353,60758.0,60757.0,0.10866143]
[1726633721438,0.5809353,60758.0,60757.0,0.00987159]
[1726633722082,0.2517613,60758.0,60757.0,0.00987159]
[1726633722389,0.2517613,60758.0,60757.0,0.10866143]
[1726633723255,0.2517613,60758.0,60757.0,0.00987159]
[1726633725704,0.0871743,60758.0,60757.0,0.00987159]
[1726633727521,0.2517613,60758.0,60757.0,0.00987159]
[1726633729814,0.27758479,60758.0,60757.0,0.00987159]
[1726633730262,0.27758479,60758.0,60757.0,0.00947159]
[1726633730475,0.27758479,60758.0,60757.0,0.08355483]
[1726633730914,0.27758479,60758.0,60757.0,0.00947159]
[1726633731134,0.5809353,60758.0,60757.0,0.00947159]
[1726633731629,0.5809353,60758.0,60757.0,0.08355356]
[1726633734447,0.5809353,60758.0,60757.0,0.07855356]
[1726633734895,0.2517613,60758.0,60757.0,0.07855356]
[1726633735795,0.5809353,60758.0,60757.0,0.07855356]
[1726633736851,0.03576355,60758.0,60757.0,0.76350759]
[1726633737061,0.03576355,60758.0,60757.0,0.00447159]
[1726633737320,0.184411,60758.0,60757.0,0.12792476]
[1726633737532,0.184411,60758.0,60757.0,0.00447159]
[1726633737778,0.20035172,60758.0,60757.0,0.07854918]
[1726633738387,0.20035172,60758.0,60757.0,0.00447159]
[1726633738388,0.22335172,60758.0,60757.0,0.00447159]
[1726633738600,0.58093647,60758.0,60757.0,0.07854922]
[1726633739456,0.25176247,60758.0,60757.0,0.07854922]
[1726633740547,0.08717547,60758.0,60757.0,0.00447159]
[1726633740753,0.25176247,60758.0,60757.0,0.00447159]
[1726633741185,0.25176247,60758.0,60757.0,0.07854926]
[1726633741639,0.25176247,60758.0,60757.0,0.00447159]
[1726633743464,0.25176247,60758.0,60757.0,0.10324802]
[1726633744983,0.08717547,60758.0,60757.0,0.10324802]
[1726633745201,0.25176247,60758.0,60757.0,0.00447159]
[1726633746490,0.25176247,60758.0,60757.0,0.12794213]
[1726633747347,0.08717547,60758.0,60757.0,0.12794213]
[1726633747564,0.25176247,60758.0,60757.0,0.12794213]
[1726633750372,0.08717547,60758.0,60757.0,0.12794213]
[1726633750720,0.25176247,60758.0,60757.0,0.00447159]
[1726633755477,0.08717547,60758.0,60757.0,0.00447159]
[1726633758123,0.08717547,60758.0,60757.0,0.16906159]
[1726633759038,0.08717547,60758.0,60757.0,0.31745071]
[1726633760348,0.08717547,60758.0,60757.0,0.16906159]
[1726633764451,0.08717547,60758.0,60757.0,0.00447159]
[1726633767312,0.11299888,60758.0,60757.0,0.00447159]
[1726633770395,0.11299888,60758.0,60757.0,0.16906159]
[1726633771304,0.11299888,60758.0,60757.0,0.00447159]
[1726633771801,0.11299888,60758.0,60757.0,0.16906159]
[1726633773215,0.09705816,60758.0,60757.0,0.00447159]
[1726633773440,0.11301402,60758.0,60757.0,0.16906159]
[1726633774840,0.06864741,60758.0,60757.0,0.49824159]
[1726633775048,0.04564741,60758.0,60757.0,0.49824159]
[1726633775504,0.04564741,60758.0,60757.0,0.82742159]
[1726633776157,0.04564741,60758.0,60757.0,0.49824159]
[1726633776792,0.04564741,60758.0,60757.0,0.82742159]
[1726633777458,0.04564741,60758.0,60757.0,0.49824159]
[1726633778340,0.26164516,60758.0,60757.0,0.00447159]
[1726633778559,0.09705816,60758.0,60757.0,0.00447159]
[1726633778779,0.1130165,60758.0,60757.0,0.00447159]
[1726633780801,0.1130165,60758.0,60757.0,0.16906159]
[1726633781017,0.06160575,60758.0,60757.0,0.00447159]
[1726633782785,0.04564741,60758.0,60757.0,0.00447159]
[1726633784807,0.04564741,60758.0,60757.0,0.82742159]
[1726633785250,0.04564741,60758.0,60757.0,0.92590562]
[1726633794309,0.04564741,60758.0,60757.0,0.82742159]
[1726633800376,0.04564741,60758.0,60757.0,1.49881298]
[1726633800611,0.019824,60758.0,60757.0,1.35048562]
[1726633801262,0.018824,60758.0,60757.0,1.34766203]
[1726633801501,0.017824,60758.0,60757.0,1.56661498]
[1726633801752,0.019824,60758.0,60757.0,1.57161498]
[1726633803410,0.019824,60758.0,60757.0,1.35266203]
[1726633806699,0.019824,60758.0,60757.0,1.25726203]
[1726633808157,0.207411,60758.0,60757.0,0.15483853]
[1726633808551,0.207411,60758.0,60757.0,0.006648]
[1726633808556,0.207411,60758.0,60757.0,0.13015299]
[1726633808557,0.56499575,60758.0,60757.0,0.13015299]
[1726633808770,0.89316975,60758.0,60757.0,0.004648]
[1726633808999,1.41654375,60758.0,60757.0,0.001648]
[1726633809483,1.41654375,60758.0,60757.0,0.006648]
[1726633810172,1.08736975,60758.0,60757.0,0.006648]
[1726633810386,1.08836975,60758.0,60757.0,0.014648]
[1726633810605,0.65919575,60758.0,60757.0,0.009648]
[1726633810855,0.06923475,60758.0,60757.0,0.001648]
[1726633811082,0.06923475,60758.0,60757.0,0.003648]
[1726633811083,0.042824,60758.0,60757.0,0.003648]
[1726633811293,0.042824,60758.0,60757.0,0.167238]
[1726633811528,0.043824,60758.0,60757.0,0.24134159]
[1726633811759,0.031824,60758.0,60757.0,0.26504279]
[1726633811990,0.044824,60758.0,60757.0,0.26604279]
[1726633812261,0.048824,60758.0,60757.0,0.26604279]
[1726633812469,0.034824,60758.0,60757.0,0.26604279]
[1726633813118,0.034824,60758.0,60757.0,0.10145279]
[1726633813332,0.034824,60758.0,60757.0,0.002648]
[1726633813578,0.551585,60758.0,60757.0,0.07671516]
[1726633813792,0.541585,60758.0,60757.0,0.05102708]
[1726633814222,0.543585,60758.0,60757.0,0.05102708]
[1726633814666,0.89216975,60758.0,60757.0,0.05102708]
[1726633814917,0.99746975,60758.0,60757.0,0.002648]
[1726633815595,1.00346975,60758.0,60757.0,0.003648]
[1726633816784,0.99746975,60758.0,60757.0,0.002648]
[1726633817548,1.01458585,60758.0,60757.0,0.002648]
[1726633817787,1.02158585,60758.0,60757.0,0.002648]
[1726633818027,1.03358585,60758.0,60757.0,0.002648]
[1726633818254,1.04658585,60758.0,60757.0,0.003648]
[1726633820019,1.37575985,60758.0,60757.0,0.003648]
[1726633821368,1.5258736,60758.0,60757.0,0.003648]
[1726633821599,1.6258736,60758.0,60757.0,0.003648]
[1726633822109,1.6258736,60758.0,60757.0,0.002648]
[1726633822110,1.6138736,60758.0,60757.0,0.002648]
[1726633822570,1.5878736,60758.0,60757.0,0.001648]
[1726633823980,1.5878736,60758.0,60757.0,0.002648]
[1726633824192,1.5998736,60758.0,60757.0,0.002648]
[1726633824421,1.6128736,60758.0,60757.0,0.003648]
[1726633824661,1.5878736,60758.0,60757.0,0.001648]
[1726633825086,1.62670065,60758.0,60757.0,0.002648]
[1726633825305,1.63870065,60758.0,60757.0,0.002648]
[1726633825489,1.65170065,60758.0,60757.0,0.003648]
[1726633825709,1.4895869,60758.0,60757.0,0.002648]
[1726633826132,1.5015869,60758.0,60757.0,0.003648]
[1726633826348,1.4755869,60758.0,60757.0,0.002648]
[1726633827694,1.4885869,60758.0,60757.0,0.003648]
[1726633827880,1.4885869,60758.0,60757.0,0.002648]
[1726633828339,1.5015869,60758.0,60757.0,0.003648]
[1726633832995,1.47575985,60758.0,60757.0,0.003648]
[1726633835115,1.47575985,60758.0,60753.0,0.001648]
[1726633835116,0.164641,60738.0,60737.0,0.0039479]
[1726633835358,0.53390406,60738.0,60737.0,0.0039479]
[1726633835783,0.86318706,60738.0,60737.0,0.0039479]
[1726633837048,1.22559063,60738.0,60737.0,0.0039479]
[1726633837266,0.89630763,60738.0,60737.0,0.0039479]
[1726633837484,1.22759063,60738.0,60737.0,0.0039479]
[1726633837680,1.22359063,60738.0,60737.0,0.0039479]
[1726633837900,1.23559063,60738.0,60737.0,0.0047719]
[1726633838124,1.24659063,60738.0,60737.0,0.0047719]
[1726633838991,1.34659063,60738.0,60737.0,0.0047719]
[1726633839673,1.67587363,60738.0,60737.0,0.0047719]
[1726633839871,1.81306439,60738.0,60737.0,0.0047719]
[1726633840092,1.89316439,60738.0,60737.0,0.0047719]
[1726633840754,1.95316439,60738.0,60737.0,0.0047719]
[1726633841565,1.94316439,60738.0,60737.0,0.0047719]
[1726633841775,1.94616439,60738.0,60737.0,0.0047719]
[1726633841983,2.29266482,60738.0,60737.0,0.0047719]
[1726633842207,2.30666482,60738.0,60737.0,0.0047719]
[1726633842412,2.4697504,60738.0,60737.0,0.0047719]
[1726633843238,2.29266482,60738.0,60737.0,0.0047719]
[1726633843650,2.30666482,60738.0,60737.0,0.0047719]
[1726633843871,1.97738182,60738.0,60737.0,0.0047719]
[1726633844691,2.30666482,60738.0,60737.0,0.0047719]
[1726633845608,2.30466482,60738.0,60737.0,0.0047719]
[1726633845850,2.4697504,60738.0,60737.0,0.0047719]
[1726633846340,2.49559184,60738.0,60737.0,0.0047719]
[1726633848490,2.49559184,60738.0,60737.0,9e-07]
[1726633849899,1.513989,60729.0,60722.0,0.001646]
[1726633850165,1.91693328,60729.0,60722.0,0.001646]
[1726633850415,1.93459325,60729.0,60722.0,0.001646]
[1726633850662,1.96043626,60729.0,60722.0,0.001646]
[1726633851424,1.97443626,60729.0,60722.0,0.001646]
[1726633851692,1.98843626,60729.0,60722.0,0.001646]
[1726633853054,1.96259325,60729.0,60722.0,0.001646]
[1726633854778,1.97262962,60729.0,60722.0,0.001646]
[1726633856446,1.99847258,60729.0,60722.0,0.001646]
[1726633861890,1.99847258,60729.0,60728.0,0.00146427]
[1726633862123,1.36592783,60729.0,60728.0,0.00146427]
[1726633862357,1.34008487,60729.0,60728.0,0.00146427]
[1726633863051,1.45158487,60729.0,60728.0,0.00146427]
[1726633863304,1.78291587,60729.0,60728.0,0.00146427]
[1726633863569,1.81991587,60729.0,60728.0,0.00146427]
[1726633863830,1.86591587,60729.0,60728.0,0.00146427]
[1726633864983,1.85191587,60729.0,60728.0,0.00146427]
[1726633865203,1.86591587,60729.0,60728.0,0.00146427]
[1726633865657,1.89175903,60729.0,60728.0,0.00146427]
[1726633866100,1.90575903,60729.0,60728.0,0.00146427]
[1726633866332,2.06884461,60729.0,60728.0,0.00146427]
[1726633866554,2.39817561,60729.0,60728.0,0.00146427]
[1726633869188,2.39817561,60729.0,60728.0,2.7e-07]
[1726633869673,2.47887561,60729.0,60728.0,2.7e-07]
[1726633870156,0.092,60719.0,60715.0,0.001648]
[1726633870395,0.709095,60717.0,60716.0,1e-06]
[1726633870633,1.7311182,60717.0,60716.0,1e-06]
[1726633870879,2.19938294,60717.0,60716.0,1e-06]
[1726633871118,2.36246852,60717.0,60716.0,1e-06]
[1726633871854,2.37646852,60717.0,60716.0,1e-06]
[1726633872331,2.026711,60716.0,60715.0,1e-06]
[1726633872573,2.06074664,60716.0,60715.0,1e-06]
[1726633872811,2.22383222,60716.0,60715.0,1e-06]
[1726633873050,2.24132598,60716.0,60715.0,1e-06]
[1726633873518,2.33592598,60716.0,60715.0,1e-06]
[1726633874455,2.32192598,60716.0,60715.0,1e-06]
[1726633874683,2.33592598,60716.0,60715.0,1e-06]
[1726633874914,2.34992598,60716.0,60715.0,1e-06]
[1726633875411,2.33592598,60716.0,60715.0,1e-06]
[1726633875636,2.75732798,60716.0,60715.0,1e-06]
[1726633875868,2.87599529,60716.0,60715.0,1e-06]
[1726633876101,1.674651,60702.0,60701.0,0.0039479]
[1726633876338,1.90033605,60702.0,60701.0,0.0039479]
[1726633877229,1.94018967,60702.0,60701.0,0.0039479]
[1726633877973,1.95418967,60702.0,60701.0,0.0039479]
[1726633878408,2.28366767,60702.0,60701.0,0.0039479]
[1726633878631,2.44675325,60702.0,60701.0,0.0039479]
[1726633879086,2.44675325,60702.0,60701.0,9e-07]
[1726633879337,2.027277,60697.0,60696.0,9e-07]
[1726633879562,2.23099875,60697.0,60696.0,9e-07]
[1726633879786,2.3344335,60697.0,60696.0,9e-07]
[1726633879996,2.23099875,60697.0,60696.0,9e-07]
[1726633880914,2.24499875,60697.0,60696.0,9e-07]
[1726633881130,2.23099875,60697.0,60696.0,9e-07]
[1726633881360,2.24499875,60697.0,60696.0,9e-07]
[1726633883164,2.25899875,60697.0,60696.0,9e-07]
[1726633883386,2.40808433,60697.0,60696.0,9e-07]
[1726633883820,2.42208433,60697.0,60696.0,9e-07]
[1726633885646,2.09257933,60697.0,60696.0,9e-07]
[1726633885895,2.42208433,60697.0,60696.0,9e-07]
[1726633886102,2.40808433,60697.0,60696.0,9e-07]
[1726633886315,2.43394214,60697.0,60696.0,9e-07]
[1726633886486,2.44794214,60697.0,60696.0,9e-07]
[1726633886741,2.43394214,60697.0,60696.0,9e-07]
[1726633887385,2.41994214,60697.0,60696.0,9e-07]
[1726633887591,2.44794214,60697.0,60696.0,9e-07]
[1726633887990,2.45115957,60697.0,60696.0,9e-07]
[1726633889488,2.46515957,60697.0,60696.0,9e-07]
[1726633889714,2.45115957,60697.0,60696.0,9e-07]
[1726633890268,2.12165457,60697.0,60696.0,9e-07]
[1726633890494,2.09865457,60697.0,60696.0,9e-07]
[1726633890774,2.11265457,60697.0,60696.0,9e-07]
[1726633891396,1.94756899,60697.0,60696.0,9e-07]
[1726633891639,1.27795024,60697.0,60696.0,9e-07]
[1726633892260,1.26395024,60697.0,60696.0,9e-07]
[1726633892683,1.27795024,60697.0,60696.0,9e-07]
[1726633892931,1.33809243,60697.0,60696.0,9e-07]
[1726633893173,1.22409243,60697.0,60696.0,9e-07]
[1726633893383,1.22409243,60697.0,60696.0,0.0937009]
[1726633893384,0.23236,60697.0,60696.0,0.0937009]
[1726633893592,0.21836,60697.0,60696.0,0.0937009]
[1726633893791,0.21836,60697.0,60696.0,0.1745009]
[1726633893792,0.24636,60697.0,60696.0,0.1745009]
[1726633894206,0.547865,60697.0,60696.0,0.1745009]
[1726633894426,0.89137,60697.0,60696.0,0.1745009]
[1726633894636,1.220875,60697.0,60696.0,0.1745009]
[1726633894836,1.206875,60697.0,60696.0,0.1745009]
[1726633895264,1.229875,60697.0,60696.0,0.1745009]
[1726633895492,1.229875,60697.0,60696.0,0.0808009]
[1726633895699,1.329875,60697.0,60696.0,0.0808009]
[1726633896117,1.353875,60697.0,60696.0,0.0808009]
[1726633896337,1.343875,60697.0,60696.0,9e-07]
[1726633896538,1.329875,60697.0,60696.0,9e-07]
[1726633896755,1.343875,60697.0,60696.0,9e-07]
[1726633897159,1.357875,60697.0,60696.0,9e-07]
[1726633897569,1.38372959,60697.0,60696.0,9e-07]
[1726633897773,1.71323459,60697.0,60696.0,9e-07]
[1726633898843,1.72321025,60697.0,60696.0,9e-07]
[1726633899268,1.69521025,60697.0,60696.0,9e-07]
[1726633899470,1.70921025,60697.0,60696.0,9e-07]
[1726633900227,1.72321025,60697.0,60696.0,9e-07]
[1726633900422,1.70921025,60697.0,60696.0,9e-07]
[1726633900868,1.72321025,60697.0,60696.0,9e-07]
[1726633902340,1.70921025,60697.0,60696.0,9e-07]
[1726633902564,1.73921025,60697.0,60696.0,9e-07]
[1726633903008,1.72735566,60697.0,60696.0,9e-07]
[1726633903218,1.71335566,60697.0,60696.0,9e-07]
[1726633903433,1.72935566,60697.0,60696.0,9e-07]
[1726633905946,1.70135566,60697.0,60696.0,9e-07]
[1726633906159,1.72935566,60697.0,60696.0,9e-07]
[1726633906601,1.75521102,60697.0,60696.0,9e-07]
[1726633910627,1.75321102,60697.0,60696.0,9e-07]
[1726633911113,1.72321102,60697.0,60696.0,9e-07]
[1726633912891,1.69735566,60697.0,60696.0,9e-07]
[1726633915154,1.357875,60697.0,60696.0,9e-07]
[1726633916325,1.38372914,60697.0,60696.0,9e-07]
[1726633917966,1.53384289,60697.0,60696.0,9e-07]
[1726633919939,1.38372914,60697.0,60696.0,9e-07]
[1726633923469,1.357875,60697.0,60696.0,9e-07]
[1726633924844,1.83749375,60697.0,60696.0,9e-07]
[1726633926158,1.83949375,60697.0,60696.0,9e-07]
[1726633926600,1.86534955,60697.0,60696.0,9e-07]
[1726633927472,2.11843513,60697.0,60696.0,9e-07]
[1726633927712,2.08843513,60697.0,60696.0,9e-07]
[1726633927933,1.95534955,60697.0,60696.0,9e-07]
[1726633928150,1.92534955,60697.0,60696.0,9e-07]
[1726633928366,1.95534955,60697.0,60696.0,9e-07]
[1726633929713,1.9380836,60697.0,60696.0,9e-07]
[1726633929947,1.95404839,60697.0,60696.0,9e-07]
[1726633930451,1.95005469,60697.0,60696.0,9e-07]
[1726633930684,2.11314027,60697.0,60696.0,9e-07]
[1726633932136,2.44264527,60697.0,60696.0,9e-07]
[1726633932355,2.11314027,60697.0,60696.0,9e-07]
[1726633932775,1.95005469,60697.0,60696.0,9e-07]
[1726633936824,2.27955969,60697.0,60696.0,9e-07]
[1726633937047,1.95005469,60697.0,60696.0,9e-07]
[1726633937485,2.27955969,60697.0,60696.0,9e-07]
[1726633937920,2.37115969,60697.0,60696.0,9e-07]
[1726633938152,2.53424527,60697.0,60696.0,9e-07]
[1726633941517,2.53424527,60697.0,60686.0,0.0032375]
[1726633941518,1.842574,60687.0,60686.0,0.0032375]
[1726633941751,2.16499455,60687.0,60686.0,0.0032375]
[1726633942215,2.22499455,60687.0,60686.0,5e-07]
[1726633942457,2.40529756,60687.0,60686.0,5e-07]
[1726633942916,2.43329756,60687.0,60686.0,5e-07]
[1726633943183,2.43529756,60687.0,60686.0,5e-07]
[1726633943414,2.42129756,60687.0,60686.0,5e-07]
[1726633943638,2.51719756,60687.0,60686.0,5e-07]
[1726633944102,2.52699175,60687.0,60686.0,5e-07]
[1726633944623,2.51299175,60687.0,60686.0,5e-07]
[1726633944870,2.362878,60687.0,60686.0,5e-07]
[1726633945091,1.80233342,60687.0,60686.0,5e-07]
[1726633945323,1.95244717,60687.0,60686.0,5e-07]
[1726633945553,1.92444717,60687.0,60686.0,5e-07]
[1726633945780,1.93844717,60687.0,60686.0,5e-07]
[1726633946011,1.95244717,60687.0,60686.0,5e-07]
[1726633946240,1.93844717,60687.0,60686.0,5e-07]
[1726633946472,1.95244717,60687.0,60686.0,5e-07]
[1726633946696,1.93844717,60687.0,60686.0,5e-07]
[1726633947689,1.96430925,60687.0,60686.0,5e-07]
[1726633948128,1.97830925,60687.0,60686.0,5e-07]
[1726633948360,2.14139483,60687.0,60686.0,5e-07]
[1726633948581,2.11339483,60687.0,60686.0,5e-07]
[1726633949023,2.12739483,60687.0,60686.0,5e-07]
[1726633949246,2.45695383,60687.0,60686.0,5e-07]
[1726633949498,2.12739483,60687.0,60686.0,5e-07]
[1726633949729,2.14139483,60687.0,60686.0,5e-07]
[1726633949964,2.54145383,60687.0,60686.0,5e-07]
[1726633950194,2.55545383,60687.0,60686.0,5e-07]
[1726633950425,2.54145383,60687.0,60686.0,5e-07]
[1726633951362,2.55545383,60687.0,60686.0,5e-07]
[1726633951806,2.39236825,60687.0,60686.0,5e-07]
[1726633952079,2.40636825,60687.0,60686.0,5e-07]
[1726633952311,1.698092,60684.0,60683.0,4e-07]
[1726633952540,2.08169323,60684.0,60683.0,4e-07]
[1726633952768,2.34327881,60684.0,60683.0,4e-07]
[1726633952994,2.17599075,60677.0,60676.0,4e-07]
[1726633953220,2.21491205,60677.0,60676.0,4e-07]
[1726633953444,2.22673028,60677.0,60676.0,4e-07]
[1726633955051,2.32523028,60677.0,60676.0,4e-07]
[1726633955314,2.32916818,60677.0,60676.0,4e-07]
[1726633955548,2.34516818,60677.0,60676.0,4e-07]
[1726633956052,2.33116818,60677.0,60676.0,4e-07]
[1726633956295,2.36894889,60677.0,60676.0,4e-07]
[1726633956523,2.38081688,60677.0,60676.0,4e-07]
[1726633956990,2.39481688,60677.0,60676.0,4e-07]
[1726633957457,2.12978846,60677.0,60676.0,4e-07]
[1726633957688,2.14700589,60677.0,60676.0,4e-07]
[1726633957912,1.98392031,60677.0,60676.0,4e-07]
[1726633958635,2.31353431,60677.0,60676.0,4e-07]
[1726633960599,2.91664831,60677.0,60676.0,4e-07]
[1726633963633,2.91664831,60677.0,60667.0,0.000824]
[1726633963634,2.028146,60668.0,60667.0,0.000824]
[1726633963869,2.21826756,60668.0,60667.0,0.000824]
[1726633964094,2.23391883,60668.0,60667.0,0.000824]
[1726633965005,2.24791883,60668.0,60667.0,0.000824]
[1726633965445,2.23391883,60668.0,60667.0,0.000824]
[1726633965862,2.26191883,60668.0,60667.0,0.000824]
[1726633966110,2.25991883,60668.0,60667.0,0.000824]
[1726633966334,2.26191883,60668.0,60667.0,0.000824]
[1726633967499,2.28778887,60668.0,60667.0,0.000824]
[1726633969115,2.38128887,60668.0,60667.0,0.000824]
[1726633970538,1.75688975,60656.0,60655.0,0.0972009]
[1726633970790,1.81474843,60656.0,60655.0,0.0972009]
[1726633971437,1.84061985,60656.0,60655.0,0.0972009]
[1726633971869,1.85261985,60656.0,60655.0,0.0972009]
[1726633972711,1.84061985,60656.0,60655.0,0.0972009]
[1726633972961,1.84061985,60656.0,60649.0,0.0032375]
[1726633972962,1.638798,60655.0,60649.0,0.0032375]
[1726633973204,1.68111554,60655.0,60649.0,0.0032375]
[1726633973435,1.69672144,60655.0,60649.0,0.0032375]
[1726633974112,1.71072144,60655.0,60649.0,0.0032375]
[1726633974332,1.69672144,60655.0,60649.0,0.0032375]
[1726633974785,1.71072144,60655.0,60649.0,0.0032375]
[1726633975083,1.72472144,60655.0,60649.0,0.0032375]
[1726633975750,1.69272144,60655.0,60649.0,0.0032375]
[1726633977136,1.69472144,60655.0,60649.0,0.0032375]
[1726633978069,1.69272144,60655.0,60649.0,0.0032375]
[1726633979153,1.69472144,60655.0,60649.0,0.0032375]
[1726633979777,1.69272144,60655.0,60649.0,0.0032375]
[1726633980907,1.33998844,60655.0,60654.0,0.098024]
[1726633981150,1.86725301,60655.0,60654.0,0.000824]
[1726633981658,1.81983519,60655.0,60654.0,0.000824]
[1726633982123,1.85883519,60655.0,60654.0,0.000824]
[1726633982377,1.86083519,60655.0,60654.0,0.000824]
[1726633982909,1.84683519,60655.0,60654.0,0.000824]
[1726633983127,1.86083519,60655.0,60654.0,0.000824]
[1726633983345,1.87483519,60655.0,60654.0,0.000824]
[1726633983971,1.86083519,60655.0,60654.0,0.000824]
[1726633984201,1.87483519,60655.0,60654.0,0.000824]
[1726633984428,1.86083519,60655.0,60654.0,0.000824]
[1726633984643,2.09792077,60655.0,60654.0,0.000824]
[1726633985728,2.1237949,60655.0,60654.0,0.000824]
[1726633986395,2.4535279,60655.0,60654.0,0.000824]
[1726633986911,2.42765377,60655.0,60654.0,0.000824]
[1726633987114,2.44465377,60655.0,60654.0,0.000824]
[1726633987577,2.11492077,60655.0,60654.0,0.000824]
[1726633988050,1.80172144,60655.0,60654.0,0.000824]
[1726633988297,1.95183519,60655.0,60654.0,0.000824]
[1726633989474,2.28156819,60655.0,60654.0,0.000824]
[1726633989682,2.30744269,60655.0,60654.0,0.000824]
[1726633990319,1.97770969,60655.0,60654.0,0.000824]
[1726633990973,2.30744269,60655.0,60654.0,0.000824]
[1726633991191,2.30909069,60655.0,60654.0,0.000824]
[1726633991639,1.82724394,60655.0,60654.0,0.000824]
[1726633993043,1.38451094,60655.0,60654.0,0.000824]
[1726633994450,1.40751094,60655.0,60654.0,0.000824]
[1726633996402,1.38163644,60655.0,60654.0,0.000824]
[1726633999919,1.73724181,60655.0,60654.0,0.000824]
[1726634000563,1.40750881,60655.0,60654.0,0.000824]
[1726634002477,1.38163644,60655.0,60654.0,0.092924]
[1726634003529,1.36763644,60655.0,60654.0,0.092924]
[1726634003743,1.38163644,60655.0,60654.0,0.092924]
[1726634004165,1.36763644,60655.0,60654.0,0.092924]
[1726634004596,1.38163644,60655.0,60654.0,0.092924]
[1726634005015,1.36763644,60655.0,60654.0,0.092924]
[1726634005440,1.38063644,60655.0,60654.0,0.092924]
[1726634005888,1.36763644,60655.0,60654.0,0.092924]
[1726634006132,1.38063644,60655.0,60654.0,0.092924]
[1726634006543,1.36663644,60655.0,60654.0,0.092924]
[1726634006996,1.38063644,60655.0,60654.0,0.092924]
[1726634007209,1.36663644,60655.0,60654.0,0.092924]
[1726634007655,1.38063644,60655.0,60654.0,0.092924]
[1726634013425,1.40650864,60655.0,60654.0,0.092924]
[1726634014123,1.40650864,60655.0,60654.0,0.000824]
[1726634014346,1.58662239,60655.0,60654.0,0.000824]
[1726634014568,1.64662239,60655.0,60654.0,0.000824]
[1726634014791,1.95048319,60655.0,60654.0,0.000824]
[1726634015010,2.11356877,60655.0,60654.0,0.000824]
[1726634015689,2.43030177,60655.0,60654.0,0.000824]
[1726634016792,2.44430177,60655.0,60654.0,0.000824]
[1726634017451,1.95148319,60655.0,60654.0,0.000824]
[1726634017911,1.97735981,60655.0,60654.0,0.000824]
[1726634018338,1.97935981,60655.0,60654.0,0.000824]
[1726634021577,2.30909281,60655.0,60654.0,0.000824]
[1726634023001,2.30909281,60655.0,60654.0,1e-06]
[1726634023925,2.15579375,60650.0,60649.0,0.0032375]
[1726634024140,2.19851903,60650.0,60649.0,0.0032375]
[1726634024375,2.30338823,60650.0,60649.0,0.0032375]
[1726634024817,2.32060566,60650.0,60649.0,0.0032375]
[1726634025479,2.33460566,60650.0,60649.0,0.0032375]
[1726634025917,2.35760566,60650.0,60649.0,0.0032375]
[1726634026364,2.37160566,60650.0,60649.0,0.0032375]
[1726634027455,2.37491105,60650.0,60649.0,0.0032375]
[1726634027893,1.98838224,60650.0,60649.0,0.0032375]
[1726634028112,2.15146782,60650.0,60649.0,0.0032375]
[1726634028359,2.15146782,60650.0,60647.0,9e-07]
[1726634028360,1.675969,60648.0,60647.0,9e-07]
[1726634028581,1.71917003,60648.0,60647.0,9e-07]
[1726634028797,1.7346067,60648.0,60647.0,9e-07]
[1726634030124,1.8250067,60648.0,60647.0,9e-07]
[1726634030345,2.1777777,60648.0,60647.0,9e-07]
[1726634030803,2.1917777,60648.0,60647.0,9e-07]
[1726634031368,2.2057777,60648.0,60647.0,9e-07]
[1726634032797,2.29254826,60648.0,60647.0,9e-07]
[1726634033253,1.607266,60636.0,60635.0,0.000824]
[1726634033408,1.80153242,60636.0,60635.0,0.000824]
[1726634033776,1.81700826,60636.0,60635.0,0.000824]
[1726634034551,1.83100826,60636.0,60635.0,0.000824]
[1726634034971,1.81700826,60636.0,60635.0,0.000824]
[1726634035379,1.83100826,60636.0,60635.0,0.000824]
[1726634035615,1.84500826,60636.0,60635.0,0.000824]
[1726634035759,1.83100826,60636.0,60635.0,0.000824]
[1726634035986,1.84098643,60636.0,60635.0,0.000824]
[1726634036177,1.85498643,60636.0,60635.0,0.000824]
[1726634036581,0.164943,60627.0,60626.0,0.077884]
[1726634036821,0.23413568,60627.0,60626.0,0.077884]
[1726634037040,1.154618,60626.0,60625.0,0.099724]
[1726634037263,1.32387869,60626.0,60625.0,0.099724]
[1726634037678,1.33933639,60626.0,60625.0,0.099724]
[1726634038290,1.36521908,60626.0,60625.0,0.099724]
[1726634038736,1.37421908,60626.0,60625.0,0.099724]
[1726634039538,1.38421908,60626.0,60625.0,0.099724]
[1726634040346,1.05432808,60626.0,60625.0,0.099724]
[1726634043193,1.04532808,60626.0,60625.0,0.099724]
[1726634043409,1.03532808,60626.0,60625.0,0.099724]
[1726634043618,1.04532808,60626.0,60625.0,0.099724]
[1726634043828,1.05632808,60626.0,60625.0,0.099724]
[1726634046239,1.38621908,60626.0,60625.0,0.000824]
[1726634046452,1.37521908,60626.0,60625.0,0.000824]
[1726634046664,1.36521908,60626.0,60625.0,0.000824]
[1726634046883,1.39321908,60626.0,60625.0,0.000824]
[1726634047094,1.37921908,60626.0,60625.0,0.000824]
[1726634047302,1.04932808,60626.0,60625.0,0.000824]
[1726634047533,1.03532808,60626.0,60625.0,0.094724]
[1726634047740,1.04932808,60626.0,60625.0,0.094724]
[1726634048626,1.06332808,60626.0,60625.0,0.094724]
[1726634048868,1.03532808,60626.0,60625.0,0.094724]
[1726634049083,1.04732808,60626.0,60625.0,0.094724]
[1726634049290,1.03532808,60626.0,60625.0,0.094724]
[1726634049742,1.04732808,60626.0,60625.0,0.094724]
[1726634049945,1.03532808,60626.0,60625.0,0.094724]
[1726634050400,1.05832808,60626.0,60625.0,0.094724]
[1726634050866,1.04732808,60626.0,60625.0,0.094724]
[1726634051093,1.05832808,60626.0,60625.0,0.094724]
[1726634051533,1.04732808,60626.0,60625.0,0.094724]
[1726634051982,1.05832808,60626.0,60625.0,0.094724]
[1726634052207,1.04632808,60626.0,60625.0,0.094724]
[1726634052419,1.05832808,60626.0,60625.0,0.094724]
[1726634052646,1.04632808,60626.0,60625.0,0.094724]
[1726634053047,1.05832808,60626.0,60625.0,0.094724]
[1726634053686,0.25228539,60626.0,60625.0,0.094724]
[1726634053910,0.5562937,60626.0,60625.0,0.094724]
[1726634054341,0.5452937,60626.0,60625.0,0.094724]